[Event "German Rapid Championship 2022"]
[Site "Goettingen"]
[Date "2022.09.25"]
[Round "9.9"]
[White "Muckle, Julius"]
[Black "Hampel, Felix"]
[Result "1/2-1/2"]
[ECO "D11"]
[WhiteElo "2401"]
[BlackElo "2326"]
[Annotator "TA"]
[PlyCount "148"]
[EventDate "2022.09.24"]
[EventType "swiss"]
[EventCountry "GER"]
[SourceTitle "playchess.com"]
[Source "ChessBase"]
[SourceQuality "1"]
[TimeControl "900+10"]

{[%evp 9,148,12,24,16,14,14,15,0,11,11,11,6,13,9,11,11,13,0,0,0,0,0,0,0,6,1,1,2,2,4,2,4,11,3,9,12,15,16,26,26,26,20,14,18,23,14,25,0,0,0,0,-13,-9,0,0,0,0,-4,0,0,0,-45,4,0,0,0,0,0,45,34,108,102,104,104,96,85,100,0,247,0,85,114,110,-33,-33,-33,-2,-2,0,0,0,0,0,0,42,42,73,80,80,70,88,80,80,80,130,84,278,262,262,252,170,8,8,8,8,27,29986,6090,6090,6090,6090,8,8,8,8,8,8,8,8,8,8,8,8,8,8,8,8,8,8,8,8]} 1. d4 {[%emt 0:00:01]} d5 {[%emt 0:00:01]} 2. c4 {[%emt 0:00:00]} c6 {[%emt 0:00:01]} 3. Nf3 {[%emt 0:00:02]} Nf6 {[%emt 0:00:01]} 4. b3 {[%emt 0:00:08]} a6 {[%emt 0:00:40]} 5. e3 {[%emt 0:00:15]} Bg4 {[%emt 0:00:36]} 6. Be2 {[%emt 0:00:06] D11: Slav Defence: 3 Nf3 sidelines and 3...Nf6 4 e3 Bg4.} e6 {[%emt 0:00:17]} 7. O-O {[%emt 0:00:02]} Bd6 {[%emt 0:00:05]} 8. h3 {[%emt 0:00:09]} Bh5 {[%emt 0:00:02]} 9. Ne5 {[%emt 0:00:43]} Bxe2 {[%emt 0:00:10]} 10. Qxe2 {[%emt 0:00:01]} Nbd7 {[%emt 0:00:16]} 11. Bb2 {[%emt 0:00:01]} O-O {[%emt 0:00:38]} 12. Nd2 {[%emt 0:00:06]} Qe7 {[%emt 0:00:10]} 13. e4 {[%emt 0:00:31]} dxe4 {[%emt 0:00:07]} 14. Nxd7 {[%emt 0:00:18]} Qxd7 {[%emt 0:01:33]} 15. Nxe4 {[%emt 0:00:01]} Nxe4 {[%emt 0:00:02]} 16. Qxe4 {[%emt 0:00:01]} Be7 {[%emt 0:00:09]} 17. Rad1 {[%emt 0:01:33]} Bf6 {[%emt 0:00:43]} 18. Rd3 {[%emt 0:01:46]} Rad8 {[%emt 0:00:06]} 19. Rfd1 {[%emt 0:00:05] [#]} Qc7 $146 {[%emt 0:00:24]} ({Predecessor:} 19... Qe7 20. g3 Rd7 21. Kg2 Rfd8 22. h4 h6 23. Bc3 Rc8 24. Qe1 b6 25. h5 Rcd8 {1-0 (54) Grachev,B (2578)-Korotylev,A (2620) Moscow 2007}) 20. Ba3 {[%emt 0:00:54]} Rfe8 {[%emt 0:00:14][%cal Bf8e8,Be8e7,Be7d7][%mdl 32]} 21. Bc1 {[%emt 0:00:58][%cal Ba3c1,Bc1d2,Bd2b4][%mdl 32]} Qa5 {[%emt 0:02:20]} 22. a4 {[%emt 0:01:33]} Re7 {[%emt 0:01:08]} 23. Bd2 {[%emt 0:00:59]} Qh5 {[%emt 0:00:11]} 24. Bb4 {[%emt 0:01:43]} Red7 {[%emt 0:00:07]} 25. Bc5 {[%emt 0:00:03]} Qh4 {[%emt 0:02:10]} 26. Qe3 {[%emt 0:02:20][%cal Od4d5]} Bg5 {[%emt 0:00:46]} 27. Qe2 {[%emt 0:00:26][%cal Od4d5]} Rc8 {[%emt 0:01:50]} 28. Rg3 {[%emt 0:03:16]} Be7 {[%emt 0:00:38]} 29. Rg4 {[%emt 0:00:25]} Qf6 {[%emt 0:00:14]} 30. Bb6 {[%emt 0:00:25]} Bd8 {[%emt 0:00:31]} 31. Bc5 {[%emt 0:00:03][%cal Od4d5]} Be7 {[%emt 0:00:03]} 32. Bxe7 {[%emt 0:00:32]} Qxe7 {[%emt 0:00:28]} 33. Qe5 {[%emt 0:00:02][%csl Gg4][%cal Re5g7]} g6 {[%emt 0:00:43]} 34. h4 {[%emt 0:00:24][%cal Bh3h4,Bh4h5,Bh5g6][%mdl 32]} Qd6 {[%emt 0:00:08] aiming for ...Qxe5.} 35. Qe3 {[%emt 0:00:17]} h5 {[%emt 0:00:10]} (35... f5 $15 36. c5 Qe7) 36. Rg5 {[%emt 0:00:01]} Rcd8 {[%emt 0:00:13]} 37. g4 {[%emt 0:00:36]} hxg4 {[%emt 0:00:41]} 38. h5 {[%emt 0:00:06]} Kg7 {[%emt 0:00:31]} 39. hxg6 {[%emt 0:00:04]} f5 {[%emt 0:02:13]} (39... fxg6 $14 40. Qe4 (40. c5 Qe7 $11) 40... e5) 40. Rh5 $16 {[%emt 0:00:02] Qh6+ would kill now.} Rh8 {[%emt 0:00:02] Against Qh6+} 41. Rxh8 {Chess con chili.} (41. Qg5 Qe7 42. Qxe7+ Rxe7 43. Rxh8 Kxh8 $15) 41... Kxh8 {[%emt 0:00:00][%mdl 4096] Endgame KQR-KQR} 42. Qh6+ {[%emt 0:00:40]} Kg8 {[%emt 0:00:01]} 43. Re1 {[%emt 0:00:14]} (43. Kg2 $16) 43... Re7 $2 {[%emt 0:00:38]} (43... g3 $11) 44. Qg5 $2 {[%emt 0:00:24]} (44. Kg2 $18) 44... Re8 {[%emt 0:00:12]} (44... Kg7 $11) 45. Qf6 {[%emt 0:00:12]} Qe7 {[%emt 0:00:02] Against Qf7+} 46. Qxe7 {[%emt 0:00:07] White is much more active.} (46. Qe5 $16) 46... Rxe7 {[%emt 0:00:01] KR-KR} 47. d5 {[%emt 0:00:01]} cxd5 {[%emt 0:00:05]} 48. cxd5 {[%emt 0:00:01]} e5 {[%emt 0:00:25]} 49. d6 {[%emt 0:00:06]} Rd7 {[%emt 0:00:03]} 50. Rxe5 {[%emt 0:00:01]} Rxd6 51. Rxf5 {[%emt 0:00:05]} Rxg6 {[%emt 0:00:06]} 52. Rf4 {[%emt 0:00:05]} g3 {[%emt 0:00:31]} 53. f3 $1 {[%emt 0:00:05] Black must now prevent Rg4.} Rb6 {[%emt 0:00:08]} 54. b4 {[%emt 0:00:04]} Rc6 {[%emt 0:00:02]} 55. Kg2 {[%emt 0:00:04]} Kg7 {[%emt 0:00:08]} 56. Kxg3 {[%emt 0:00:03]} Kg6 {[%emt 0:00:00]} (56... b6 $142) 57. a5 {[%emt 0:00:12]} (57. Rd4 $142 $1) 57... b6 $2 {[%emt 0:00:25] [#]} (57... Rd6 $16) 58. Rd4 $1 $18 {[%emt 0:00:21]} ({And not} 58. b5 Rc5 $11) 58... Kf5 {[%emt 0:00:14]} 59. Rd5+ {[%emt 0:00:03]} Kf6 {[%emt 0:00:13] [#]} 60. b5 $2 {[%emt 0:00:18]} (60. Kg4 $1 $18) 60... axb5 $11 {[%emt 0:00:16]} 61. a6 {[%emt 0:00:00]} b4 {[%emt 0:00:07]} 62. Rb5 {[%emt 0:00:05] White wants to mate with a7.} b3 $2 {[%emt 0:00:15][%mdl 8192]} (62... Rc3 $11) 63. Rxb3 {[%emt 0:00:11]} (63. a7 $142 Rc8 64. Rxb6+ Ke5 65. Rb8 Rxb8 66. axb8=Q+ Kd5 67. Qxb3+ Kc5 68. Kf4) 63... b5 {[%emt 0:00:02]} 64. Ra3 {[%emt 0:00:25] White threatens a7 and mate.} ({Worse is} 64. a7 Ra6 $11) 64... Rc8 {[%emt 0:00:01]} 65. Kf4 $2 {[%emt 0:00:40]} (65. a7 $18 Ra8 66. Kf4) 65... b4 {[%emt 0:00:05] The position is equal.} 66. Ra1 {Strongly threatening a7.} b3 {[%emt 0:00:04]} 67. a7 {[%emt 0:00:43]} b2 {[%emt 0:00:19]} 68. Ra6+ {[%emt 0:00:02]} Kf7 $132 {[%emt 0:00:01][%mdl 2048] Black is fighting back} 69. Rb6 {[%emt 0:00:02]} Ra8 {[%emt 0:00:05]} (69... Rc4+ {is interesting.} 70. Kf5 Ra4 71. Rb7+ Kf8) 70. Rxb2 {[%emt 0:00:24]} (70. Rb7+ {with more complications.} Kf6 71. Kg4 b1=R 72. Rxb1 Rxa7 73. Rb6+) 70... Rxa7 {[%emt 0:00:00]} 71. Kg4 {[%emt 0:00:12]} Ra4+ {[%emt 0:00:13]} 72. f4 {[%emt 0:00:10]} Ra5 {[%emt 0:00:06]} 73. Rb6 {[%emt 0:00:01]} Rc5 {[%emt 0:00:25]} 74. Rh6 {[%emt 0:00:18]} Ra5 {[%emt 0:00:03] Weighted Error Value: White=0.19 (very precise) /Black=0.21 (precise)} 1/2-1/2

[Event "German Rapid Championship 2022"]
[Site "Goettingen"]
[Date "2022.09.25"]
[Round "9.10"]
[White "Schmidt, Tobias"]
[Black "Langrock, Hannes"]
[Result "1/2-1/2"]
[ECO "B22"]
[WhiteElo "2262"]
[BlackElo "2358"]
[Annotator "TA"]
[PlyCount "65"]
[EventDate "2022.09.24"]
[EventType "swiss"]
[EventCountry "GER"]
[SourceTitle "playchess.com"]
[Source "ChessBase"]
[SourceQuality "1"]
[TimeControl "900+10"]

{[%evp 12,65,0,0,12,-2,0,-6,0,0,-8,-40,-25,-31,-31,-41,-28,-88,-52,-37,-39,-44,-29,-24,-27,-23,-25,-33,0,0,0,0,0,8,21,0,0,0,0,0,0,0,0,0,0,0,0,0,0,0,0,0,0,0,0,0]} 1. e4 {[%emt 0:00:01]} c5 {[%emt 0:00:01]} 2. c3 {[%emt 0:00:01]} Nf6 {[%emt 0:00:02]} 3. e5 {[%emt 0:00:01]} Nd5 {[%emt 0:00:01]} 4. Nf3 {[%emt 0:00:02]} d6 {[%emt 0:00:01]} 5. d4 {[%emt 0:00:04]} cxd4 {[%emt 0:00:01]} 6. Qxd4 {[%emt 0:00:34]} e6 {[%emt 0:00:41]} 7. Nbd2 {[%emt 0:00:01]} Nc6 {[%emt 0:00:38] B22: Sicilian: 2 c3.} 8. Bb5 {[%emt 0:00:02]} Bd7 {[%emt 0:01:56]} 9. Bxc6 {[%emt 0:00:02]} Bxc6 {[%emt 0:00:08]} 10. Nc4 {[%emt 0:00:02]} f6 {[%emt 0:03:46]} 11. Nxd6+ {[%emt 0:01:13]} (11. exd6 $5 {[%cal Re1g1]} Qd7 12. O-O $14) 11... Bxd6 {[%emt 0:00:02]} 12. exd6 {[%emt 0:00:01]} e5 {[%emt 0:02:00]} (12... Qxd6 $2 13. c4 $16) 13. Qg4 {[%emt 0:02:30]} Qd7 {[%emt 0:01:12] [#]} 14. Qg3 $146 {[%emt 0:01:26]} (14. Qxd7+ $11 Kxd7 15. Bd2 (15. c4 Nb4 $15)) ({Predecessor:} 14. Qxd7+ Kxd7 15. Rg1 Kxd6 16. Nd2 Kc7 17. f3 Rhe8 18. Nc4 e4 19. Kf2 Rad8 20. a4 {½-½ (29) Mroziak,M (2359)-Baklan,V (2609) Krakow 2016}) 14... O-O {[%emt 0:00:39][%cal Bh8f8,Bf8f7,Bf7d7][%mdl 32]} 15. O-O {[%emt 0:00:59]} Qxd6 {[%emt 0:00:06]} 16. Nd4 {[%emt 0:00:18][%cal Og3g7]} Qd7 {[%emt 0:01:07]} 17. Nxc6 {[%emt 0:00:23]} Qxc6 {[%emt 0:00:04]} 18. Bh6 {[%emt 0:00:10][%csl Gh6][%cal Rg3g7] [#]} Rf7 {[%emt 0:00:05]} 19. Rfd1 {[%emt 0:01:25]} b5 {[%emt 0:00:42]} 20. Rd2 {[%emt 0:00:40] The position is equal.} Rd8 {[%emt 0:00:51]} 21. Rad1 {[%emt 0:00:08]} Kh8 {[%emt 0:00:44]} 22. Be3 {[%emt 0:00:09]} Rfd7 {[%emt 0:00:19]} 23. h4 {[%emt 0:00:22]} (23. Qf3 $5 {[%cal Re3a7]}) 23... a6 {[%emt 0:01:08]} 24. h5 {[%emt 0:00:17]} h6 {[%emt 0:00:31]} 25. Qg6 {[%emt 0:00:35]} Nxe3 {[%emt 0:01:09]} 26. Rxd7 {[%emt 0:00:08]} Rxd7 {[%emt 0:00:04]} 27. Qe8+ {[%emt 0:00:17]} Kh7 {[%emt 0:00:00][%csl Ge3][%cal Rc6g2] [#]} 28. Qg6+ {[%emt 0:00:03]} Kg8 {[%emt 0:00:25]} 29. Rxd7 {[%emt 0:00:49] Dancing on a razor blade.} Qxd7 {[%emt 0:00:02]} 30. fxe3 {[%emt 0:00:01]} Qd2 {[%emt 0:00:16]} 31. Qe8+ {[%emt 0:00:03]} Kh7 {[%emt 0:00:01]} 32. Qg6+ {[%emt 0:00:02]} Kg8 {[%emt 0:00:01]} 33. Qe8+ {Weighted Error Value: White=0.07 (flawless) /Black=0.05 (flawless)} 1/2-1/2

[Event "German Rapid Championship 2022"]
[Site "Goettingen"]
[Date "2022.09.25"]
[Round "9.11"]
[White "Laux, Dominik"]
[Black "Reichmann, Hendrik"]
[Result "0-1"]
[ECO "A45"]
[WhiteElo "2248"]
[BlackElo "2307"]
[Annotator "TA"]
[PlyCount "98"]
[EventDate "2022.09.24"]
[EventType "swiss"]
[EventCountry "GER"]
[SourceTitle "playchess.com"]
[Source "ChessBase"]
[SourceQuality "1"]
[TimeControl "900+10"]

{[%evp 10,98,25,17,27,20,24,20,43,35,37,37,52,49,64,62,66,53,47,31,29,-24,-24,-26,12,-34,0,-6,27,24,81,83,113,88,162,143,149,138,138,137,143,161,213,84,85,39,172,0,0,0,57,-125,94,91,77,-135,-122,-116,-133,-145,-119,-127,-13,-528,-530,-525,-439,-418,-460,-428,-318,-779,-422,-419,-416,-690,-668,-1294,-1277,-1269,-1220,-29987,-29988,-29988,-29989,-29987,-29988,-29998,-29998,-29998,-29999]} 1. d4 {[%emt 0:00:01]} Nf6 {[%emt 0:00:05]} 2. Bg5 {[%emt 0:00:03]} c5 {[%emt 0:00:17]} 3. Bxf6 {[%emt 0:00:03]} gxf6 {[%emt 0:00:03]} 4. d5 {[%emt 0:00:05]} Qb6 {[%emt 0:01:20]} 5. Qc1 {[%emt 0:00:02]} f5 {[%emt 0:00:10]} 6. c4 {[%emt 0:00:02]} Qh6 {[%emt 0:01:09][%cal Rh6c1] A45: Trompowsky Attack.} 7. e3 {[%emt 0:00:36] [#]} d6 $146 {[%emt 0:01:01]} ({Predecessor:} 7... e5 8. Nc3 d6 9. Qc2 Bg7 10. g3 e4 11. Nb5 Kd8 12. Ne2 Nd7 13. Nf4 Ne5 14. Be2 {0-1 (40) Vlasenko,M (2403)-Sychev,K (2537) Sochi 2022}) 8. Nc3 {[%emt 0:00:15]} Nd7 {[%emt 0:01:45] The position is equal.} 9. Nge2 {[%emt 0:00:39]} a6 {[%emt 0:01:55]} 10. Ng3 {[%emt 0:00:49]} e6 {[%emt 0:00:22]} 11. Be2 {[%emt 0:00:21]} Rg8 {[%emt 0:00:28]} 12. Rb1 {[%emt 0:00:34]} Be7 {[%emt 0:00:13]} 13. b4 {[%emt 0:00:52]} cxb4 {[%emt 0:00:29]} 14. Rxb4 {[%emt 0:00:09]} Nc5 {[%emt 0:01:31]} 15. O-O {[%emt 0:01:01]} (15. dxe6 $142 fxe6 16. Qd2) 15... e5 $1 $11 {[%emt 0:03:00]} 16. f4 {[%emt 0:00:51]} e4 {[%emt 0:00:06]} 17. Qd2 {[%emt 0:03:15]} (17. Qa3 $11 {is more appropriate.}) 17... Qg7 {[%emt 0:01:07]} 18. Bd1 {[%emt 0:00:44]} h5 {[%emt 0:00:32]} 19. Nxh5 {[%emt 0:01:58]} Qh6 {[%emt 0:00:03]} (19... Qg6 $1 $11) 20. Na4 $1 $16 {[%emt 0:00:38]} Nd3 {[%emt 0:00:31]} 21. Rb3 {[%emt 0:00:37]} Bd7 {[%emt 0:00:32]} (21... Rb8 $16) 22. Nb6 {[%emt 0:00:08]} Rd8 {[%emt 0:00:05]} 23. Rxd3 {[%emt 0:00:43]} exd3 {[%emt 0:00:01]} 24. Qxd3 {[%emt 0:00:42]} Qg6 {[%emt 0:00:42][%csl Gg8][%cal Rg6g2]} 25. Bf3 {[%emt 0:00:47]} Rh8 {[%emt 0:00:15]} (25... Bh4 $142) 26. Qe2 {[%emt 0:00:02]} (26. Ng3 $18 {is more deadly.}) 26... Kf8 {[%emt 0:00:10]} 27. Rb1 {[%emt 0:00:07]} (27. Nxd7+ $16 Rxd7 28. Ng3) 27... Be8 {[%emt 0:00:09]} ({Black should play} 27... Bh4 $1 $14) 28. a4 $2 {[%emt 0:01:28]} (28. Ng3 $1 $18) 28... Bh4 $1 $11 {[%emt 0:00:26]} 29. a5 {[%emt 0:00:47]} Qh6 {[%emt 0:00:27]} (29... Rh6 $11) 30. Rb2 $2 {[%emt 0:01:24]} (30. Qc2 $14 {stays ahead.}) 30... Be7 $2 {[%emt 0:00:38]} (30... f6 $17 {[%cal Re8h5]} 31. g3 Bxh5 32. Bxh5 Qxh5 33. Qxh5 Rxh5) 31. h3 $1 $16 {[%emt 0:00:24]} Bh4 {[%emt 0:00:09]} 32. g4 $2 {[%emt 0:00:07]} (32. Kh2 $1 $16 {keeps the pressure on.}) 32... fxg4 $17 {[%emt 0:00:13]} 33. hxg4 {[%emt 0:00:02] [#]} f5 $1 {[%emt 0:00:24] White must now prevent ...fxg4.} 34. Qh2 {[%emt 0:00:22]} Be7 {[%emt 0:00:15] This bishop pair is nice.} 35. Ng3 {[%emt 0:00:08] [#] Strongly threatening Qxh6+.} fxg4 {[%emt 0:00:05] Really sharp!} (35... Qg7 $1 $17 36. Qc2 (36. Qe2 fxg4 37. Be4 Rh3 $17) 36... fxg4) 36. Bxg4 $2 {[%emt 0:00:12][%mdl 8192]} (36. Qxh6+ $11 Rxh6 37. Nf5) 36... Qg7 $19 {[%emt 0:00:02][%csl LRg4,LRh2]} 37. Bh3 {[%emt 0:00:02]} Rxh3 {[%emt 0:00:05][%mdl 64] Deflection} 38. Qxh3 {[%emt 0:00:03]} Qxb2 {[%emt 0:00:01]} 39. Nf5 {[%emt 0:00:20] Hoping for Qh6+.} Qf6 {[%emt 0:00:15] Threatens to win with ...Bg6.} 40. e4 $2 {[%emt 0:00:07]} (40. Nd4) 40... Qg6+ {[%emt 0:00:26]} 41. Kf1 {[%emt 0:00:09] aiming for Qh8+.} Qh5 {[%emt 0:00:09] Against Qh8+} 42. Qe3 {[%emt 0:00:04]} (42. Qxh5 $142 Bxh5 43. Nxe7 Kxe7 44. Kf2) 42... Bf6 {[%emt 0:00:10]} 43. c5 {[%emt 0:00:19]} Qh1+ {[%emt 0:00:05]} 44. Kf2 {[%emt 0:00:11]} Qh2+ {[%emt 0:00:05]} 45. Kf1 {[%emt 0:00:04]} Bb5+ {[%emt 0:00:03] Black mates.} 46. Ke1 {[%emt 0:00:03] [#]} Bc3+ $1 {[%emt 0:00:06][%mdl 512]} 47. Kd1 {[%emt 0:00:04]} Qb2 {[%emt 0:00:15]} 48. cxd6 {[%emt 0:00:18]} Qb1+ {[%emt 0:00:03]} 49. Qc1 {[%emt 0:00:04]} Qd3+ {[%emt 0:00:01] Black used his chance.  Weighted Error Value: White=0.84/Black=0.39} 0-1

[Event "German Rapid Championship 2022"]
[Site "Goettingen"]
[Date "2022.09.25"]
[Round "9.12"]
[White "Albert, Markus"]
[Black "Voigt, Martin"]
[Result "0-1"]
[ECO "B10"]
[WhiteElo "2129"]
[BlackElo "2319"]
[Annotator "TA"]
[PlyCount "54"]
[EventDate "2022.09.24"]
[EventType "swiss"]
[EventCountry "GER"]
[SourceTitle "playchess.com"]
[Source "ChessBase"]
[SourceQuality "1"]
[TimeControl "900+10"]

{[%evp 9,54,-2,1,-4,17,17,20,17,59,0,0,0,12,-43,42,-20,-7,0,41,0,91,-64,-75,-75,-68,-131,-118,-152,-144,-230,-90,-87,-80,-205,-204,-425,-426,-432,-431,-402,-278,-416,-391,-1124,-1114,-1358,-1298]} 1. e4 {[%emt 0:00:02]} c6 {[%emt 0:00:01][%cal Bc7c6,Bc6c5,Bc5c4][%mdl 32]} 2. Nc3 {[%emt 0:00:02]} d5 {[%emt 0:00:01]} 3. Qf3 {[%emt 0:00:02]} d4 {[%emt 0:00:26]} 4. Bc4 {[%emt 0:00:02]} e6 {[%emt 0:00:10]} 5. Nce2 {[%emt 0:00:02]} c5 {[%emt 0:00:08]} 6. d3 {[%emt 0:00:07] [#] B11: Caro-Kann: Two Knights Variation.} Nd7 $146 {[%emt 0:00:28][%cal Ob7b5]} ({Predecessor:} 6... Nc6 7. Qg3 Nf6 8. Nf3 b5 9. Bb3 c4 10. dxc4 Nxe4 11. Qf4 f5 12. cxb5 Bd6 13. Qh4 {½-½ (47) Yoo,C (2466)-Murzin,V (2505) Tornelo INT 2021}) 7. Qg3 {[%emt 0:00:07]} b5 {[%emt 0:00:08]} 8. Bb3 {[%emt 0:00:02] The position is equal.} Bb7 {[%emt 0:00:09]} 9. a4 {[%emt 0:00:48]} (9. Nf3 $14) 9... c4 $11 {[%emt 0:00:36]} 10. Ba2 {[%emt 0:00:16]} Ngf6 {[%emt 0:02:23]} 11. axb5 {[%emt 0:02:11]} (11. Nxd4 $11 cxd3 12. cxd3) 11... Bb4+ {[%emt 0:00:19]} ({Black should try} 11... cxd3 $15 12. cxd3 Qa5+ 13. Kf1 Qa4) 12. Kf1 {[%emt 0:00:20]} (12. c3 $14 cxd3 13. cxb4 dxe2 14. Nxe2) 12... cxd3 {[%emt 0:00:07]} 13. cxd3 {[%emt 0:00:11]} O-O {[%emt 0:00:38]} 14. Nf3 {[%emt 0:00:54]} Nc5 {[%emt 0:00:51]} ({Much less strong is} 14... Nh5 15. Qh3 Nhf6 16. Nfxd4 $16) (14... a6 $1 $11 {remains equal.}) 15. Bc4 $2 {[%emt 0:02:51] [#]} (15. Bh6 $16 {[%csl Gh6][%cal Rg3g7]} Ne8 16. Nfxd4) 15... Nfxe4 $1 {[%emt 0:01:15]} 16. dxe4 {[%emt 0:00:15]} Nxe4 {[%emt 0:00:02]} 17. Qg4 {[%emt 0:00:33]} ({White should play} 17. Qe5 $15 d3 18. Be3 (18. Nc3 d2 $17) 18... dxe2+ 19. Kxe2) 17... d3 $17 {[%emt 0:00:16] Dancing on a razor blade.} 18. Be3 {[%emt 0:00:42] Threatens to win with Ned4.} dxe2+ {[%emt 0:00:14]} 19. Bxe2 {[%emt 0:00:03] [#]} (19. Kxe2 $17 Bd5 20. Rhc1) 19... Bc5 {[%emt 0:01:23]} (19... f5 $1 $19 {[%cal Rf5g4]} 20. Qh4 Be7) 20. Bxc5 {[%emt 0:02:38]} Nxc5 {[%emt 0:00:01]} 21. h3 {[%emt 0:00:45] This costs White the game.} (21. Qf4 $17) 21... Ne4 $19 {[%emt 0:00:15]} 22. Re1 $2 {[%emt 0:01:41]} (22. Kg1) 22... Qb6 {[%emt 0:00:21][%csl Ge4][%cal Rb6f2]} 23. Qh4 {[%emt 0:00:01]} h6 {[%emt 0:00:06] ...g5 is the strong threat.} 24. Kg1 {[%emt 0:01:09]} e5 {[%emt 0:01:34]} 25. Rf1 {[%emt 0:00:18]} (25. Nxe5 $142 g5 26. Qg4 Nxf2 27. Nc4) 25... g5 {[%emt 0:00:31]} 26. Qg4 {[%emt 0:00:14]} (26. Nxg5 hxg5 27. Qh5) 26... f5 {[%emt 0:00:17]} 27. Bc4+ {[%emt 0:02:32]} Kg7 {[%emt 0:00:02] Weighted Error Value: White=0.77/Black=0.30} 0-1

[Event "German Rapid Championship 2022"]
[Site "Goettingen"]
[Date "2022.09.25"]
[Round "9.13"]
[White "Perkampus, Laurin"]
[Black "Cofmann, Veaceslav"]
[Result "0-1"]
[ECO "A57"]
[WhiteElo "2123"]
[BlackElo "2250"]
[Annotator "TA"]
[PlyCount "78"]
[EventDate "2022.09.24"]
[EventType "swiss"]
[EventCountry "GER"]
[SourceTitle "playchess.com"]
[Source "ChessBase"]
[SourceQuality "1"]
[TimeControl "900+10"]

{[%evp 24,78,77,62,102,100,143,61,69,70,66,62,60,51,30,39,52,34,44,23,34,36,56,80,167,120,118,87,100,0,148,0,0,0,0,0,0,-579,-579,-564,-521,-29970,-29971,-6213,-6527,-29993,-29991,-29991,-29989,-29992,-29991,-29994,-29991,-29996,-29997,-29998,-29999]} 1. d4 {[%emt 0:00:03]} Nf6 {[%emt 0:00:01]} 2. c4 {[%emt 0:00:01]} c5 {[%emt 0:00:02]} 3. d5 {[%emt 0:00:01]} b5 {[%emt 0:00:01]} 4. cxb5 {[%emt 0:00:01]} a6 {[%emt 0:00:01]} 5. e3 {[%emt 0:00:01]} d6 {[%emt 0:00:07]} 6. Nc3 {[%emt 0:00:07]} g6 {[%emt 0:00:04]} 7. Nf3 {[%emt 0:00:11]} Bg7 {[%emt 0:00:01]} 8. e4 {[%emt 0:01:50]} O-O {[%emt 0:00:11]} 9. a4 {[%emt 0:00:09]} axb5 {[%emt 0:00:05]} 10. Bxb5 {[%emt 0:00:05]} Ba6 {[%emt 0:00:01]} 11. Bg5 {[%emt 0:00:14]} Nbd7 {[%emt 0:00:24]} 12. O-O {[%emt 0:00:14]} Bxb5 {[%emt 0:00:29]} 13. axb5 {[%emt 0:00:02]} Qb6 {[%emt 0:00:13] E91: King's Indian: Classical: 6 Be2, unusual replies including 6...c5 and 6...Bg4.} 14. Nd2 {[%emt 0:02:29]} Qb7 {[%emt 0:00:29] [#]} 15. Nc4 $146 {[%emt 0:01:14]} ({White should try} 15. Qe2 $1 $16) ({Predecessor:} 15. Qe2 Nb6 16. Ra6 h6 17. Be3 Nfd7 18. Nb3 f5 19. exf5 Rxf5 20. Na5 Qc7 21. Nc6 {1-0 (42) Thorsteins,K (2480)-Hauchard,A (2450) Reykjavik 1993}) 15... Rxa1 $14 {[%emt 0:00:09] White is slightly better.} 16. Qxa1 {[%emt 0:00:05]} Ra8 {[%emt 0:00:01] Prevents Qa6.} 17. Qd1 {[%emt 0:02:00]} Nb6 {[%emt 0:00:51]} 18. Qe2 {[%emt 0:00:21]} Nxc4 {[%emt 0:00:09]} 19. Qxc4 {[%emt 0:00:02]} Nd7 {[%emt 0:00:05]} 20. Qe2 {[%emt 0:01:06]} (20. Bxe7 $2 Nb6 21. Qd3 Qxe7 $19) 20... Nb6 {[%emt 0:00:05]} 21. Bf4 {[%emt 0:02:42]} Na4 {[%emt 0:00:34]} 22. e5 {[%emt 0:01:50]} Nxc3 {[%emt 0:02:34]} 23. bxc3 {[%emt 0:00:03]} Qxd5 {[%emt 0:00:01]} (23... dxe5 $16 {was worth a try.} 24. Bxe5 Bxe5 25. Qxe5 Qxb5) 24. exd6 $18 {[%emt 0:00:17]} exd6 {[%emt 0:00:18]} 25. Rd1 {[%emt 0:00:18]} Qb3 {[%emt 0:02:18]} 26. h4 {[%emt 0:01:38]} (26. Bxd6 c4 $14) (26. c4 $16) 26... h5 {[%emt 0:01:41]} (26... Bxc3 27. Qf3 d5 28. Rxd5 $18) (26... c4 $1 $11) 27. Kh2 {[%emt 0:01:18]} ({But not} 27. Bxd6 $6 c4 $11) (27. Rxd6 $16 {And now Kh2 would win.} Ra4 28. Bg3 Ra1+ 29. Kh2) 27... Ra2 $36 {[%emt 0:03:29][%cal Ba8a2,Ba2f2,Bf2f1,Bf1f4,Bf4h4,Bh4g4,Bg4g2][%mdl 2080] Black is more active.} (27... Bxc3 $2 28. Rxd6 Bg7 29. b6 $16) 28. Qe8+ {[%emt 0:00:28]} Kh7 {[%emt 0:00:03]} 29. Rxd6 {[%emt 0:00:03] Rd8 is the strong threat.} Rxf2 {[%emt 0:01:00]} 30. Bg3 {[%emt 0:00:21][%mdl 8192] [#]} (30. Be3 $1 $11 Rb2 31. Rd8 (31. Bxc5 {is a self mate.} Qc2)) 30... Rf1 $1 $19 {[%emt 0:00:09] aiming for ...Qb1.} 31. Qe4 {[%emt 0:00:50]} Qxc3 {[%emt 0:02:20] Hoping for ...Qa1.} 32. b6 {[%emt 0:00:14]} Qa1 {[%emt 0:00:02][%csl Ga1][%cal Rf1h1]} 33. Bf4 {[%emt 0:00:09] [#]} Rxf4 $1 {[%emt 0:00:09][%mdl 512]} 34. Qd3 {[%emt 0:00:12]} (34. Qxf4 Be5) 34... Rxh4+ {Black mates.} 35. Kg3 Rg4+ {[%emt 0:00:12]} 36. Kf3 {[%emt 0:00:01]} Qe5 {[%emt 0:00:13]} 37. Rd5 {[%emt 0:00:25]} Qf6+ {[%emt 0:00:32]} 38. Ke2 {[%emt 0:00:13]} Rxg2+ {[%emt 0:00:02]} 39. Kd1 {[%emt 0:00:05]} Qa1+ {[%emt 0:00:02] Weighted Error Value: White=0.75/Black=0.12 (very precise)} 0-1